lending/lending_fUSD_20250425
["ID","MTS","AMOUNT","RATE_DAILY","PERIOD"]
[358982197,1745601056448,-500.0,0.0003041,2]
[358982198,1745601056459,-500.0,0.0003041,2]
[358982199,1745601056471,-500.0,0.0003041,2]
[358982200,1745601056480,-644.11,0.0003041,2]
[358982201,1745601056490,-500.0,0.0003041,2]
[358982202,1745601056499,-500.0,0.0003041,2]
[358982203,1745601056510,-663.46,0.0003041,2]
[358982204,1745601056520,-636.58,0.0003041,2]
[358982205,1745601056530,-500.0,0.0003041,2]
[358982206,1745601056540,-236.86628794,0.0003041,2]
[358982207,1745601056550,-500.0,0.0003041,2]
[358982208,1745601056559,-500.0,0.0003041,2]
[358982209,1745601056569,-500.0,0.0003041,2]
[358982210,1745601056580,-740.87,0.0003041,2]
[358982211,1745601056590,-500.0,0.0003041,2]
[358982212,1745601056600,-500.0,0.0003041,2]
[358982213,1745601056611,-500.0,0.0003041,2]
[358982214,1745601056621,-500.0,0.0003041,2]
[358982215,1745601056631,-633.79,0.0003041,2]
[358982216,1745601056641,-500.0,0.0003041,2]
[358982217,1745601056651,-500.0,0.0003041,2]
[358982218,1745601056662,-500.0,0.0003041,2]
[358982219,1745601056674,-500.0,0.0003041,2]
[358982220,1745601056684,-500.0,0.0003041,2]
[358982221,1745601056695,-500.0,0.0003041,2]
[358982222,1745601056706,-500.0,0.0003041,2]
[358982223,1745601056716,-500.0,0.0003041,2]
[358982224,1745601056727,-540.66858809,0.0003041,2]
[358982225,1745601056737,-1268.75,0.0003041,2]
[358982226,1745601056747,-500.0,0.0003041,2]
[358982227,1745601056757,-670.26,0.0003041,2]
[358982228,1745601056770,-500.0,0.0003041,2]
[358982229,1745601056780,-500.0,0.0003041,2]
[358982230,1745601056790,-500.0,0.0003041,2]
[358982231,1745601056799,-500.0,0.0003041,2]
[358982232,1745601056809,-500.0,0.0003041,2]
[358982233,1745601056819,-500.0,0.0003041,2]
[358982234,1745601056829,-967.36,0.0003041,2]
[358982235,1745601056838,-500.0,0.0003041,2]
[358982236,1745601056849,-673.77,0.0003041,2]
[358982237,1745601056859,-500.0,0.0003041,2]
[358982238,1745601056869,-500.0,0.0003041,2]
[358982239,1745601056879,-528.9908873,0.0003041,2]
[358982240,1745601056888,-500.0,0.0003041,2]
[358982241,1745601056898,-500.0,0.0003041,2]
[358982242,1745601056907,-500.0,0.0003041,2]
[358982243,1745601056917,-500.0,0.0003041,2]
[358982244,1745601056927,-500.0,0.0003041,2]
[358982245,1745601056936,-790.25,0.0003041,2]
[358982246,1745601056946,-500.0,0.0003041,2]
[358982247,1745601056956,-500.0,0.0003041,2]
[358982248,1745601056965,-500.0,0.0003041,2]
[358982249,1745601056974,-500.0,0.0003041,2]
[358982250,1745601056983,-500.0,0.0003041,2]
[358982251,1745601056993,-500.0,0.0003041,2]
[358982252,1745601057002,-923.76,0.0003041,2]
[358982253,1745601057013,-500.0,0.0003041,2]
[358982254,1745601057023,-1174.49,0.0003041,2]
[358982255,1745601057032,-500.0,0.0003041,2]
[358982256,1745601057041,-500.0,0.0003041,2]
[358982257,1745601057050,-500.0,0.0003041,2]
[358982258,1745601057060,-500.0,0.0003041,2]
[358982259,1745601057069,-500.0,0.0003041,2]
[358982260,1745601057078,-500.0,0.0003041,2]
[358982261,1745601057087,-500.0,0.0003041,2]
[358982262,1745601057096,-1092.71,0.0003041,2]
[358982263,1745601057106,-650.78,0.0003041,2]
[358982264,1745601057116,-500.0,0.0003041,2]
[358982265,1745601057125,-557.37,0.0003041,2]
[358982266,1745601057135,-429.20225349,0.0003041,2]
[358982267,1745601057145,-500.0,0.0003041,2]
[358982268,1745601057154,-785.45,0.0003041,2]
[358982269,1745601057165,-500.0,0.0003041,2]
[358982270,1745601057176,-500.0,0.0003041,2]
[358982271,1745601057185,-594.25,0.0003041,2]
[358982272,1745601057195,-500.0,0.0003041,2]
[358982273,1745601057204,-500.0,0.0003041,2]
[358982274,1745601057214,-500.0,0.0003041,2]
[358982275,1745601057224,-924.65,0.0003041,2]
[358982276,1745601057233,-601.61549974,0.0003041,2]
[358982277,1745601057243,-500.0,0.0003041,2]
[358982278,1745601057253,-500.0,0.0003041,2]
[358982279,1745601057264,-500.0,0.0003041,2]
[358982280,1745601057274,-957.78,0.0003041,2]
[358982281,1745601057283,-500.0,0.0003041,2]
[358982282,1745601057293,-500.0,0.0003041,2]
[358982283,1745601057302,-500.0,0.0003041,2]
[358982284,1745601057312,-500.0,0.0003041,2]
[358982285,1745601057322,-1371.5,0.0003041,2]
[358982286,1745601057331,-500.0,0.0003041,2]
[358982287,1745601057340,-677.47,0.0003041,2]
[358982288,1745601057350,-500.0,0.0003041,2]
[358982289,1745601057359,-500.0,0.0003041,2]
[358982290,1745601057369,-500.0,0.0003041,2]
[358982291,1745601057378,-500.0,0.0003041,2]
[358982292,1745601057387,-500.0,0.0003041,2]
[358982293,1745601057396,-928.04,0.0003041,2]
[358982294,1745601057405,-500.0,0.0003041,2]
[358982295,1745601057415,-500.0,0.0003041,2]
[358982296,1745601057424,-500.0,0.0003041,2]
[358982297,1745601057434,-520.45,0.0003041,2]
[358982298,1745601057443,-773.16,0.0003041,2]
[358982299,1745601057453,-500.0,0.0003041,2]
[358982300,1745601057462,-500.0,0.0003041,2]
[358982301,1745601057472,-935.85,0.0003041,2]
[358982302,1745601057482,-506.96209056,0.0003041,2]
[358982303,1745601057491,-1119.43,0.0003041,2]
[358982304,1745601057501,-621.68,0.0003041,2]
[358982305,1745601057510,-539.07,0.0003041,2]
[358982306,1745601057520,-500.0,0.0003041,2]
[358982307,1745601057529,-876.72,0.0003041,2]
[358982308,1745601057539,-500.0,0.0003041,2]
[358982309,1745601057548,-500.0,0.0003041,2]
[358982310,1745601057558,-491.37452138,0.0003041,2]
[358982311,1745601057567,-16631.81,0.0003041,2]
[358982312,1745601057577,-698.43,0.0003041,2]
[358982313,1745601057586,-940.97,0.0003041,2]
[358982314,1745601057596,-500.0,0.0003041,2]
[358982315,1745601057606,-500.0,0.0003041,2]
[358982316,1745601057615,-500.0,0.0003041,2]
[358982317,1745601057624,-587.58,0.0003041,2]
[358982318,1745601057634,-500.0,0.0003041,2]
[358982319,1745601057644,-500.0,0.0003041,2]
[358982320,1745601057654,-500.0,0.0003041,2]
[358982321,1745601057664,-829.76,0.0003041,2]
[358982322,1745601057673,-500.0,0.0003041,2]
[358982323,1745601057683,-8672.03,0.0003041,2]
[358982324,1745601057692,-500.0,0.0003041,2]
[358982325,1745601057702,-500.0,0.0003041,2]
[358982326,1745601057711,-500.0,0.0003041,2]
[358982327,1745601057721,-600.41,0.0003041,2]
[358982328,1745601057730,-756.44,0.0003041,2]
[358982329,1745601057740,-963.49,0.0003041,2]
[358982330,1745601057749,-500.0,0.0003041,2]
[358982331,1745601057760,-515.42751159,0.0003041,2]
[358982332,1745601057771,-500.0,0.0003041,2]
[358982333,1745601057780,-500.0,0.0003041,2]
[358982334,1745601057789,-500.0,0.0003041,2]
[358982335,1745601057799,-500.0,0.0003041,2]
[358982336,1745601057808,-500.0,0.0003041,2]
[358982337,1745601057818,-825.01,0.0003041,2]
[358982338,1745601057827,-3503.98,0.0003041,2]
[358982339,1745601057837,-1000.0,0.0003041,2]
[358982340,1745601057846,-911.62,0.0003041,2]
[358982341,1745601057856,-506.57056571,0.0003041,2]
[358982342,1745601057877,-500.0,0.0003041,2]
[358982343,1745601057889,-500.0,0.0003041,2]
[358982344,1745601057900,-500.0,0.0003041,2]
[358982345,1745601057910,-641.57,0.0003041,2]
[358982346,1745601057920,-523.18,0.0003041,2]
[358982347,1745601057930,-500.0,0.0003041,2]
[358982348,1745601057940,-500.0,0.0003041,2]
[358982349,1745601057950,-500.0,0.0003041,2]
[358982350,1745601057961,-500.0,0.0003041,2]
[358982351,1745601057972,-500.0,0.0003041,2]
[358982352,1745601057985,-500.0,0.0003041,2]
[358982353,1745601057996,-500.0,0.0003041,2]
[358982354,1745601058007,-500.0,0.0003041,2]
[358982355,1745601058018,-785.3,0.0003041,2]
[358982356,1745601058028,-500.0,0.0003041,2]
[358982357,1745601058038,-1189.55,0.0003041,2]
[358982358,1745601058048,-500.0,0.0003041,2]
[358982359,1745601058059,-500.0,0.0003041,2]
[358982360,1745601058069,-500.0,0.0003041,2]
[358982361,1745601058079,-500.0,0.0003041,2]
[358982362,1745601058092,-602.18,0.0003041,2]
[358982363,1745601058103,-3903.71,0.0003041,2]
[358982364,1745601058114,-5369.71,0.0003041,2]
[358982365,1745601058125,-500.0,0.0003041,2]
[358982366,1745601058136,-500.0,0.0003041,2]
[358982367,1745601058147,-500.0,0.0003041,2]
[358982368,1745601058158,-500.0,0.0003041,2]
[358982369,1745601058326,-514.06,0.0003041,2]
[358982370,1745601058338,-670.6,0.0003041,2]
[358982371,1745601058349,-500.0,0.0003041,2]
[358982372,1745601058360,-500.0,0.0003041,2]
[358982373,1745601058371,-500.0,0.0003041,2]
[358982374,1745601058383,-500.0,0.0003041,2]
[358982375,1745601058394,-1207.02,0.0003041,2]
[358982376,1745601058404,-500.0,0.0003041,2]
[358982377,1745601058414,-509.39,0.0003041,2]
[358982378,1745601058426,-500.0,0.0003041,2]
[358982379,1745601058437,-500.0,0.0003041,2]
[358982380,1745601058447,-1000.0,0.0003041,2]
[358982381,1745601058458,-688.13,0.0003041,2]
[358982382,1745601058468,-500.0,0.0003041,2]
[358982383,1745601058478,-500.0,0.0003041,2]
[358982384,1745601058489,-792.09,0.0003041,2]
[358982385,1745601058500,-838.46,0.0003041,2]
[358982386,1745601058511,-500.0,0.0003041,2]
[358982387,1745601058521,-33619.42993674,0.0003041,2]
[358982388,1745601059091,-655.22356748,0.0003041,2]
[358982389,1745601059102,-730.41982564,0.0003041,2]
[358982392,1745601910560,361.53867822,0.000154,2]
[358982393,1745601915360,-300.0,0.00019999,2]
[358982394,1745601915392,-158.48697925,0.0002,2]
[358982395,1745601924146,-287.22890409,0.0002,2]
[358982396,1745601931288,-159.075377,0.000199,2]
[358982397,1745601934570,-159.075377,0.000199,2]
[358982398,1745601940537,-253.69571891,0.00019502,2]
[358982399,1745601945887,-291.62270811,0.00019502,2]
[358982400,1745601951280,-249.62840221,0.00019502,2]
[358982401,1745601955421,-150.0,0.00019502,2]
[358982402,1745601959768,-358.02730482,0.00019502,2]
[358982403,1745601963302,-170.35345658,0.00019502,2]
[358982404,1745601968097,-200.0,0.00019502,2]
[358982405,1745601971272,-405.8594487,0.00019502,2]
[358982406,1745601975768,-242.74560186,0.00019502,2]
[358982407,1745601981826,839.37175745,0.000209,30]
[358982408,1745601988958,-161.33106,0.00019502,2]
[358982421,1745602029596,1239.0445,0.000153,2]
[358982422,1745602033514,1571.92409538,0.00015,2]
[358982423,1745602037455,2053.44707652,0.00015,2]
[358982444,1745602078952,-152.0,0.00019502,2]
[358982445,1745602079735,15135.5843281,0.0001,2]
[358982446,1745602081300,50691.14490872,0.0002,4]
[358982447,1745602081327,10052.18707636,0.0002,4]
[358982448,1745602097141,-250.0,0.00019502,2]
[358982449,1745602118344,200.0,0.000193,7]
[358982450,1745602120504,500.0,0.000194,7]
[358982451,1745602122614,800.0,0.000195,7]
[358982452,1745602123232,500.0,0.000151,2]
[358982453,1745602124725,1100.0,0.000196,7]
[358982454,1745602126772,359.18845889,0.0002,90]
[358982455,1745602126872,1300.0,0.000197,7]
[358982456,1745602128975,200.0,0.000198,7]
[358982457,1745602131066,200.0,0.000199,7]
[358982458,1745602139015,-227.24332395,0.00019502,2]
[358982459,1745602141660,-200.0,0.00019502,2]
[358982460,1745602145860,-300.0,0.00019502,2]
[358982461,1745602183949,-629.70037261,0.00019404,2]
[358982462,1745602186704,-180.60193739,0.00019404,2]
[358982463,1745602186728,-61.41541644,0.00019502,2]
[358982464,1745602191906,-299.30376792,0.00019502,2]
[358982465,1745602196074,-152.0,0.00019502,2]
[358982466,1745602201055,-121.00547988,0.00019502,2]
[358982467,1745602201092,-86.82740543,0.00019666,2]
[358982478,1745602202261,2000.0,0.0002,4]
[358982479,1745602204170,-113.17259457,0.00019666,2]
[358982480,1745602204195,-250.0,0.00019748,2]
[358982481,1745602230461,-150.0,0.00019748,2]
[358982501,1745602232088,-50.0,0.00019748,2]
[358982502,1745602232098,-569.55426632,0.000198,2]
[358982503,1745602232108,-189.25783037,0.0001981,2]
[358982504,1745602232118,-341.23528707,0.0001983,2]
[358982505,1745602232339,-821.16639888,0.0001983,2]
[358982506,1745602232349,-200.0,0.00019854,2]
[358982507,1745602232359,-1200.0,0.00019899,2]
[358982508,1745602232369,-300.0,0.00019899,2]
[358982509,1745602232378,-749.0397547,0.000199,2]
[358982510,1745602232388,-32942.90232582,0.000199,2]
[358982511,1745602232643,-1433.235,0.000199,2]
[358982512,1745602232656,-22258.51091673,0.000199,2]
[358982513,1745602232666,-411.49466743,0.000199,2]
[358982514,1745602232676,-18222.43065573,0.000199,2]
[358982515,1745602232689,-4297.54566169,0.000199,2]
[358982520,1745602237526,-922.34510238,0.000199,2]
[358982521,1745602237684,-22124.14469739,0.000199,2]
[358982522,1745602237694,-680.59269817,0.000199,2]
[358982525,1745602237988,-14559.9057199,0.000199,2]
[358982526,1745602238006,-592.04711612,0.000199,2]
[358982527,1745602238016,-501.44247445,0.00019973,2]
[358982529,1745602238026,-500.0,0.00019973,2]
[358982531,1745602238036,-215.01092805,0.00019973,2]
[358982532,1745602238046,-348.32631817,0.00019973,2]
[358982533,1745602238056,-155.14515575,0.00019973,2]
[358982534,1745602238067,-500.0,0.00019973,2]
[358982535,1745602238076,-185.00979863,0.00019973,2]
[358982536,1745602238086,-500.0,0.00019973,2]
[358982537,1745602238098,-500.0,0.00019973,2]
[358982538,1745602238108,-158929.6907245,0.00019986,2]
[358982539,1745602238118,-6254.86859349,0.0001999,2]
[358982540,1745602238127,-269.38692571,0.0001999,2]
[358982541,1745602238137,-269.38692571,0.0001999,2]
[358982542,1745602238147,-269.38692571,0.0001999,2]
[358982543,1745602238157,-300.0,0.00019999,2]
[358982544,1745602238166,-300.0,0.00019999,2]
[358982545,1745602238178,-300.0,0.00019999,2]
[358982546,1745602238189,-500.0,0.00019999,2]
[358982547,1745602238201,-500.0,0.00019999,2]
[358982548,1745602238214,-500.0,0.00019999,2]
[358982549,1745602238223,-500.0,0.00019999,2]
[358982550,1745602238233,-500.0,0.00019999,2]
[358982551,1745602238243,-308.77035142,0.00019999,2]
[358982552,1745602238253,-254.10378079,0.00019999,2]
[358982553,1745602238263,-150.0,0.00019999,2]
[358982554,1745602238272,-2499978.81924833,0.0002,2]
[358982555,1745602238285,-2467003.98865408,0.0002,2]
[358982556,1745602238296,-8656.27485605,0.0002,2]
[358982557,1745602238356,-349.03655998,0.0002,2]
[358982558,1745602238368,-73226.22783234,0.0002,2]
[358982563,1745602239794,-91923.33239939,0.0002,2]
[358982564,1745602239903,-1325.0000005,0.0002,2]
[358982565,1745602240382,-5510.251494,0.000198,2]
[358982566,1745602240393,-90035.74850599,0.0002,2]
[358982568,1745602240406,-4531.67397954,0.0002,2]
[358982571,1745602240488,-2120437.76792892,0.0002,2]
[358982572,1745602240498,-7238.35116241,0.0002,2]
[358982573,1745602240509,-301.07610912,0.0002,2]
[358982574,1745602240519,-1481.81958212,0.0002,2]
[358982575,1745602240529,-41232.86796624,0.0002,2]
[358982576,1745602240540,-3051.47448008,0.0002,2]
[358982577,1745602240552,-1804.6,0.0002,2]
[358982578,1745602240562,-5397.0,0.0002,2]
[358982579,1745602240572,-5649.43568783,0.0002,2]
[358982580,1745602240582,-2270649.86541418,0.0002,2]
[358982581,1745602240593,-1009.30157326,0.0002,2]
[358982582,1745602240602,-1757.89332187,0.0002,2]
[358982583,1745602240613,-250.0,0.0002,2]
[358982584,1745602240624,-250.0,0.0002,2]
[358982585,1745602240634,-250.0,0.0002,2]
[358982586,1745602240644,-250.0,0.0002,2]
[358982587,1745602240653,-250.0,0.0002,2]
[358982588,1745602240663,-250.0,0.0002,2]
[358982589,1745602240673,-250.0,0.0002,2]
[358982590,1745602240683,-250.0,0.0002,2]
[358982591,1745602240692,-250.0,0.0002,2]
[358982592,1745602240702,-250.0,0.0002,2]
[358982593,1745602240712,-312.9,0.0002,2]
[358982594,1745602240722,-242.74560186,0.00021392,2]
[358982595,1745602240732,-200.0,0.00021452,2]
[358982596,1745602240743,-250.0,0.00021633,2]
[358982597,1745602240753,-200.0,0.00021633,2]
[358982598,1745602240762,-420.0,0.0002167,2]
[358982599,1745602240772,-1680.0,0.00021774,2]
[358982600,1745602240782,-4626.82719059,0.000219,3]
[358982601,1745602240793,-4626.82719039,0.00022521,4]
[358982602,1745602240804,-4626.82719039,0.00023141,4]
[358982603,1745602240814,-23900.0,0.00023341,2]
[358982604,1745602240825,-587.0,0.00023599,2]
[358982605,1745602240835,-4626.82719039,0.00023762,4]
[358982606,1745602240846,-2351.0,0.00023826,2]
[358982607,1745602240856,-5000.00673376,0.00024,5]
[358982608,1745602240866,-150.0,0.00024,2]
[358982609,1745602240876,-188.59,0.00024054,2]
[358982610,1745602240886,-4626.82719039,0.00024383,5]
[358982611,1745602240896,-300.0,0.00024799,10]
[358982612,1745602240906,-500.0,0.00024799,2]
[358982613,1745602240929,-397333.82103015,0.000248,2]
[358982614,1745602240944,-1481.70368767,0.000248,2]
[358982615,1745602240974,-9570.88532805,0.000248,2]
[358982622,1745602242688,-367.85789054,0.000248,2]
[358982623,1745602242702,-841.23567221,0.000248,2]
[358982624,1745602242715,-73999.39273338,0.000248,2]
[358982625,1745602242725,-500.0,0.00024899,2]
[358982626,1745602242734,-65558.22203721,0.000249,2]
[358982627,1745602242759,-273.91172636,0.000249,2]
[358982628,1745602242771,-15499.99999999,0.000249,2]
[358982629,1745602242782,-1003.90985324,0.000249,2]
[358982630,1745602242870,-6880.49999982,0.000249,2]
[358982631,1745602242930,-419.3400005,0.000249,2]
[358982632,1745602242943,-402.0340627,0.000249,2]
[358982633,1745602243044,-504.76511919,0.000249,2]
[358982634,1745602243056,-869.23473425,0.000249,2]
[358982647,1745602245564,-1114.5,0.000249,2]
[358982648,1745602245622,-1075.49692841,0.000249,2]
[358982649,1745602245635,-464.23444341,0.000249,2]
[358982650,1745602245646,-258.9012995,0.000249,2]
[358982651,1745602245658,-7166.175,0.000249,2]
[358982652,1745602245669,-5122.74592092,0.000249,2]
[358982653,1745602245879,-1029.95915469,0.000249,2]
[358982656,1745602245996,-1750.0,0.000249,2]
[358982659,1745602460161,-334.31970383,0.000199,2]
[358982660,1745602460187,-200.0,0.00019918,2]
[358982661,1745602460210,-250.0,0.00019936,2]
[358982662,1745602460234,-200.0,0.00019936,2]
[358982663,1745602597425,250.0,0.00017,2]
[358982664,1745602598137,300.0,0.00019,2]
[358982681,1745603431841,-303.33273231,0.000209,2]
[358982682,1745603431851,-200.0,0.00020925,2]
[358982683,1745603431860,-200.0,0.0002095,2]
[358982684,1745603431870,-159.8791245,0.00021,2]
[358982685,1745603431881,-190.1208755,0.00021,2]
[358982686,1745603431891,-334.31970379,0.00021125,2]
[358982687,1745603431900,-161.3413666,0.00022228,2]
[358982688,1745603431910,-328.9701,0.0002225,2]
[358982689,1745603431925,-167.7928043,0.0002225,2]
[358982690,1745603431936,-334.31970379,0.0002235,2]
[358982691,1745603431946,-1323.22069402,0.00022445,2]
[358982692,1745603432050,-383.12875825,0.00022445,2]
[358982693,1745603432062,-402.32054773,0.00022445,2]
[358982694,1745603432072,-829.53077268,0.00022836,2]
[358982695,1745603432086,-370.46922732,0.00022836,2]
[358982696,1745603432095,-58.12217496,0.00022836,2]
[358982697,1745603432107,-241.87782504,0.00022836,2]
[358982698,1745603432117,-306.64885717,0.00022837,2]
[358982702,1745603432145,-2784.99114283,0.00022837,2]
[358982704,1745603432155,-300.0,0.00022837,2]
[358982706,1745603432164,-1000.0,0.00022846,2]
[358982708,1745603432175,-23900.0,0.00022862,2]
[358982710,1745603432187,-150.0,0.00022877,2]
[358982712,1745603432197,-2785.27,0.00022917,2]
[358982714,1745603432206,-1870.32,0.00022917,2]
[358982716,1745603432216,-200.0,0.0002299,2]
[358982718,1745603432227,-250.0,0.0002299,2]
[358982720,1745603432236,-200.0,0.0002299,2]
[358982722,1745603432246,-200.0,0.0002299,2]
[358982725,1745603432256,-400.0,0.00023,2]
[358982727,1745603432266,-426.51,0.00023078,2]
[358982729,1745603432275,-250.0,0.00023096,2]
[358982731,1745603432285,-1000.0,0.00023099,2]
[358982733,1745603432295,-150.99,0.000231,2]
[358982735,1745603432304,-299.89207983,0.00023182,2]
[358982737,1745603432314,-500.0,0.00023182,2]
[358982739,1745603432323,-3029.97990969,0.00023182,2]
[358982741,1745603432333,-9999.99,0.00023183,2]
[358982743,1745603432343,-1239.15,0.00023183,2]
[358982745,1745603432352,-4554.32,0.00023183,2]
[358982747,1745603432362,-150.99,0.00023183,2]
[358982774,1745603432730,-2643.15,0.00023183,2]
[358982775,1745603432745,-388.43,0.00023183,2]
[358982776,1745603432755,-692.47,0.00023183,2]
[358982777,1745603432765,-1740.76,0.00023183,2]
[358982778,1745603432775,-1402.95,0.00023183,2]
[358982779,1745603432786,-999.99,0.00023183,2]
[358982780,1745603432796,-9279.08,0.00023183,2]
[358982781,1745603432805,-337.73,0.00023184,2]
[358982782,1745603432815,-19999.99,0.00023184,2]
[358982783,1745603432825,-1370.4,0.00023184,2]
[358982784,1745603432835,-9999.99,0.00023184,2]
[358982785,1745603432845,-5666.59,0.00023184,2]
[358982786,1745603432855,-1973.75,0.00023196,2]
[358982787,1745603432864,-4709.08,0.00023196,2]
[358982788,1745603432874,-200.0,0.0002323,2]
[358982789,1745603432884,-300.0,0.00023249,2]
[358982790,1745603432894,-1251.6,0.00023263,2]
[358982791,1745603432903,-500.0,0.00023398,2]
[358982792,1745603432915,-500.0,0.0002349,2]
[358982793,1745603432925,-2718.46,0.00023502,2]
[358982794,1745603432936,-186.75,0.00023561,2]
[358982795,1745603432946,-334.31970379,0.00023574,2]
[358982796,1745603432955,-849.70324548,0.00023663,2]
[358982797,1745603432967,-339.26,0.00023836,2]
[358982798,1745603432976,-150.0,0.00023841,2]
[358982799,1745603432989,-449.32,0.00023841,2]
[358982800,1745603433000,-1429.50570815,0.000239,5]
[358982801,1745603433013,-5448.86156941,0.000239,5]
[358982802,1745603433023,-849.70324548,0.00023947,2]
[358982803,1745603433034,-150.0,0.00024,2]
[358982804,1745603433044,-166.47,0.00024162,2]
[358982805,1745603433054,-849.70324548,0.00024341,2]
[358982806,1745603433064,-2374.97,0.00024363,2]
[358982807,1745603433073,-150.0,0.00024365,7]
[358982808,1745603433084,-165.75,0.00024391,2]
[358982809,1745603433094,-6878.36727736,0.00024452,5]
[358982810,1745603433104,-802.2,0.00024471,3]
[358982811,1745603433114,-830.12,0.0002448,2]
[358982812,1745603433124,-849.7032455,0.00024481,2]
[358982813,1745603433134,-19544.14214076,0.0002456,2]
[358982814,1745603433144,-151.0,0.00024644,2]
[358982815,1745603433155,-257.66,0.00024658,4]
[358982816,1745603433165,-6262.14858655,0.0002466,2]
[358982817,1745603433176,-164.77602562,0.0002466,2]
[358982818,1745603433187,-2108.67,0.00024709,2]
[358982819,1745603433202,-5876.06804507,0.00024793,2]
[358982820,1745603433212,-420.0,0.00024794,2]
[358982821,1745603433222,-1214.37,0.00024798,2]
[358982822,1745603433232,-3391.47617423,0.00024798,2]
[358982823,1745603433245,-4906.28337191,0.00024798,2]
[358982824,1745603433257,-345.43910658,0.00024798,2]
[358982825,1745603433282,-951.83,0.00024798,2]
[358982829,1745603437656,-173.84134728,0.00024798,2]
[358982830,1745603437666,-141.47101252,0.00024799,2]
[358982831,1745603437711,-192.84869127,0.00024799,2]
[358982832,1745603437721,-42722.7808783,0.00024876,2]
[358982833,1745603437730,-500.0,0.00024885,2]
[358982834,1745603437740,-500.0,0.00024885,2]
[358982835,1745603437750,-500.0,0.00024885,2]
[358982836,1745603437759,-399.01189254,0.00024885,2]
[358982837,1745603437769,-500.0,0.00024885,2]
[358982838,1745603437778,-500.0,0.00024885,2]
[358982839,1745603437788,-200.0,0.00024885,2]
[358982840,1745603437797,-192.74342896,0.00024885,2]
[358982841,1745603437808,-193.2518961,0.00024885,2]
[358982853,1745603438103,-7137.8394662,0.00024886,2]
[358982855,1745603438121,-15584.4848108,0.00024886,2]
[358982857,1745603438131,-85830.1925793,0.00024886,2]
[358982859,1745603438140,-119448.9067204,0.00024893,2]
[358982861,1745603438150,-346.31288096,0.000249,2]
[358982863,1745603438159,-200.0,0.000249,2]
[358982865,1745603438169,-549.19624,0.000249,34]
[358982867,1745603438178,-500.0,0.000249,2]
[358982869,1745603438190,-500.0,0.000249,2]
[358982871,1745603438199,-500.0,0.000249,2]
[358982873,1745603438209,-500.0,0.000249,2]
[358982875,1745603438218,-500.90438284,0.000249,2]
[358982877,1745603438228,-152.89812849,0.000249,2]
[358982879,1745603438237,-500.0,0.000249,2]
[358982880,1745603438247,-500.0,0.000249,2]
[358982881,1745603438256,-501.04190365,0.000249,2]
[358982883,1745603438267,-161.6299547,0.000249,2]
[358982885,1745603438276,-166.3311815,0.00024902,2]
[358982887,1745603438286,-1680.0,0.0002491,2]
[358982889,1745603438295,-500.0,0.00025,2]
[358982891,1745603438305,-445.20090867,0.00025,2]
[358982893,1745603438315,-162.55196063,0.00025,2]
[358982895,1745603438324,-6878.36727736,0.00025003,5]
[358982897,1745603438334,-21361.3904392,0.0002509,2]
[358982899,1745603438344,-9469.43,0.000251,2]
[358982901,1745603438353,-200.0,0.00025149,2]